[Event "FIDE Womens Grand Prix-I 2022-23"]
[Site "Nur-Sultan"]
[Date "2022.09.22"]
[Round "5.1"]
[White "Kashlinskaya, Alina"]
[Black "Shuvalova, Polina"]
[Result "1-0"]
[ECO "E47"]
[WhiteElo "2491"]
[BlackElo "2510"]
[Annotator "TA"]
[PlyCount "145"]
[EventDate "2022.09.15"]
[EventType "tourn"]
[EventCountry "KAZ"]
[SourceTitle "playchess.com"]
[Source "ChessBase"]
[SourceQuality "1"]
[TimeControl "40/5400+30:1800+30"]

{[%evp 21,145,0,0,0,0,0,15,-8,-3,-21,-35,-35,-36,-34,22,14,18,11,5,5,12,-3,0,0,0,-14,0,-7,0,0,0,-14,0,0,0,-12,0,0,0,-14,0,0,0,0,0,0,0,-8,0,0,0,0,0,0,5,0,0,0,0,0,0,-20,0,-27,0,-15,0,0,0,0,0,0,0,-56,-39,-54,12,0,7,7,22,7,23,0,0,0,0,0,-8,0,0,-531,-484,-446,-173,-547,-201,-191,-179,-173,0,-8,282,293,284,277,242,261,1538,1486,1511,1529,29968,29964,12847,5289,3029,2414,29985,29986,29986,29987,29987,1861,1538,1377]} 1. d4 {[%emt 0:00:04]} Nf6 {[%emt 0:00:05]} 2. c4 {[%emt 0:00:07]} e6 {[%emt 0:00:04]} 3. Nc3 {[%emt 0:00:06]} Bb4 {[%emt 0:00:06]} 4. e3 {[%emt 0:00:11]} O-O {[%emt 0:00:05]} 5. Bd3 {[%emt 0:00:06]} Re8 {[%emt 0:00:07]} 6. a3 {[%emt 0:04:16]} Bxc3+ {[%emt 0:00:56]} 7. bxc3 {[%emt 0:00:05]} e5 {[%emt 0:00:07]} 8. Ne2 {[%emt 0:03:56]} d6 {[%emt 0:00:06]} 9. f3 {[%emt 0:19:25]} b6 {[%emt 0:13:06]} 10. e4 {[%emt 0:00:56]} Ba6 {[%emt 0:03:49]} 11. O-O {[%emt 0:02:43]} Nc6 {[%emt 0:01:26]} 12. Bg5 {[%emt 0:03:27]} h6 {[%emt 0:01:47]} 13. Bh4 $1 {[%emt 0:03:03]} g5 $1 {[%emt 0:04:21]} 14. Bf2 {[%emt 0:02:28]} Nh5 $1 {[%emt 0:00:08]} 15. c5 {[%emt 0:11:10]} Bxd3 {[%emt 0:00:59]} 16. Qxd3 {[%emt 0:00:06]} dxc5 {[%emt 0:01:42]} 17. Qb5 {[%emt 0:02:56]} Qd7 {[%emt 0:10:25]} (17... Qd6 $15) 18. d5 $11 {[%emt 0:08:49]} Nb8 {[%emt 0:00:28]} 19. Qb3 {[%emt 0:00:08]} Qe7 {[%emt 0:04:14]} 20. a4 {[%emt 0:02:49]} Nd7 {[%emt 0:04:00]} 21. Rfd1 {[%emt 0:00:55]} Red8 {[%emt 0:02:00]} 22. a5 {[%emt 0:03:17]} Ndf6 {[%emt 0:02:27]} 23. Ra2 {[%emt 0:04:02]} Ne8 {[%emt 0:03:46]} 24. Rda1 {[%emt 0:00:05]} Nd6 {[%emt 0:01:24]} 25. axb6 {[%emt 0:00:34]} cxb6 {[%emt 0:00:05]} 26. Ra6 {[%emt 0:00:15]} Qd7 {[%emt 0:03:58]} 27. c4 {[%emt 0:02:04]} Rdb8 {[%emt 0:00:42]} 28. Nc3 {[%emt 0:08:44]} Kh7 {[%emt 0:02:37]} 29. Na4 {[%emt 0:00:46]} Nf4 {[%emt 0:03:51]} 30. Be3 {[%emt 0:03:04]} Ng6 {[%emt 0:06:09]} (30... Rb7 {is interesting.} 31. Qc2 Rg8 32. Kh1 Rc7) 31. Qa2 {[%emt 0:00:17]} Qc7 {[%emt 0:00:57]} 32. Nb2 {[%emt 0:00:51]} Rb7 {[%emt 0:00:21]} 33. Nd3 {[%emt 0:00:59]} f6 {[%emt 0:02:29]} 34. Qc2 {[%emt 0:01:55]} Ne7 {[%emt 0:02:09]} 35. h3 {[%emt 0:01:16]} Kg7 {[%emt 0:00:14]} 36. Bf2 {[%emt 0:01:07]} Rc8 {[%emt 0:02:14]} 37. Qa2 {[%emt 0:01:03]} Kf7 {[%emt 0:00:56]} 38. Bg3 {[%emt 0:00:40]} (38. h4 {looks sharper.} Ng6 39. h5 Nf4 40. Nxf4 gxf4 41. Rxa7 Rxa7 42. Qxa7 Nxc4 43. Kf1) 38... Ng6 {[%emt 0:02:10]} 39. Nb2 {[%emt 0:02:03]} Ra8 {[%emt 0:01:39]} 40. Nd3 {[%emt 0:00:26]} Kg8 {[%emt 0:05:42]} 41. Qc2 {[%emt 0:32:48]} Re8 {[%emt 0:32:39]} 42. R1a4 {[%emt 0:02:53]} Nf8 {[%emt 0:01:20]} 43. Qa2 {[%emt 0:02:51]} Nc8 {[%emt 0:00:48]} 44. Qb3 {[%emt 0:00:00]} Nd7 {[%emt 0:00:00]} 45. Ra1 {[%emt 0:00:00]} Nb8 {[%emt 0:00:00]} 46. R6a2 {[%emt 0:00:00]} a5 {[%emt 0:00:00]} 47. h4 {[%emt 0:00:00]} ({White should try} 47. Nb2 $11) 47... Nd6 $15 {[%emt 0:00:00]} 48. Nf2 {[%emt 0:00:00]} Nd7 {[%emt 0:00:00]} ({Better is} 48... Qg7 $15) 49. Qc3 {[%emt 0:00:00]} Kg7 {[%emt 0:00:00]} 50. Ng4 {[%emt 0:00:00]} Qd8 {[%emt 0:00:00]} 51. Rf1 {[%emt 0:00:00]} Qe7 {[%emt 0:00:00]} 52. Raa1 {[%emt 0:00:00]} Ra8 {[%emt 0:00:00]} 53. Rae1 {[%emt 0:00:00]} b5 {[%emt 0:00:00]} 54. hxg5 {[%emt 0:00:00]} hxg5 {[%emt 0:00:00]} 55. f4 $1 {[%emt 0:00:00]} (55. cxb5 Nxb5 56. Qb2 Qd8 $17) 55... b4 {[%emt 0:00:00]} (55... Nxc4 56. fxe5 fxe5 57. Rf5 $14) 56. Qa1 $2 {[%emt 0:00:00][%mdl 8192]} (56. Qc1 $1 $11 {and White has nothing to worry.}) 56... gxf4 $19 {[%emt 0:00:00]} 57. Bxf4 {[%emt 0:00:00]} Rh8 $2 {[%emt 0:00:00]} (57... exf4 58. Rxf4 b3) 58. Re3 $2 {[%emt 0:00:15]} (58. Be3) 58... Rh5 $2 {[%emt 0:00:00]} (58... exf4 59. e5 fxe5 60. Nxe5 Qf6 61. Nxd7 Rxd7 62. Rg3+ Kf7 63. Rxf4 Qxf4 64. Qg7+ Ke8 65. Qxh8+ Ke7) 59. Bh6+ $19 {[%emt 0:05:35]} Kh8 {[%emt 0:00:48]} ({Stronger than} 59... Rxh6 60. Nxh6 Kxh6 61. Qe1 $17) 60. Qd1 {[%emt 0:00:12]} Rb8 $2 {[%emt 0:05:13]} (60... Nxc4 61. Rg3 Qf7 62. Nxf6 Nxf6 63. Rxf6 Rh1+ 64. Kxh1 $18) (60... Qf7 $1 $19 {[%cal Rf7g6] Strongly threatening ...Qg6.} 61. Nxf6 Nxf6 62. Rxf6 Qxf6 63. Qxh5 Rh7) 61. Rff3 {[%emt 0:01:23]} Nxc4 $2 {[%emt 0:01:08][%mdl 8192]} (61... b3 $1 $11 {and Black is okay.} 62. Rxb3 Rxb3 63. Rxb3 Nxe4) 62. Rb3 $1 $18 {[%emt 0:00:01]} a4 {[%emt 0:03:06]} 63. Rh3 {[%emt 0:00:01]} axb3 {[%emt 0:02:10]} (63... Rxh3 $2 64. Rxh3 Qh7 65. Bc1 Qxh3 66. gxh3 $18) 64. Rxh5 {[%emt 0:00:02]} b2 $2 {[%emt 0:00:23]} (64... Qf7 65. Ne3 Nxe3 66. Bxe3+ Kg8 67. Qg4+ Qg7 68. Qe6+ Qf7 69. Rh8+ Kxh8 70. Qxf7 b2 71. Qh5+ Kg8 72. Qg4+ Kh8 73. Qh3+ Kg8 74. Qg4+ Kh8 75. Qh5+ Kg8) 65. Bc1+ $1 $18 {[%emt 0:01:32]} (65. Bf8+ Qh7 $1 66. Rxh7+ Kxh7 $11) 65... Kg7 {[%emt 0:02:07] [#]} 66. Nh6 $1 {[%emt 0:00:01]} bxc1=Q {[%emt 0:02:01]} 67. Nf5+ {[%emt 0:00:18]} Kf7 {[%emt 0:00:20]} 68. Qxc1 {[%emt 0:00:41]} Nf8 {[%emt 0:03:16]} 69. Nxe7 {[%emt 0:00:49]} b3 {[%emt 0:00:04]} 70. Qxc4 {[%emt 0:00:16]} b2 {[%emt 0:00:19]} 71. d6+ {[%emt 0:00:01]} Ke8 {[%emt 0:02:07]} 72. Qa4+ {[%emt 0:00:19]} (72. Ng8 $142 Kd8 73. Kh2 b1=Q 74. Nxf6 Kc8 75. Qf7 Qg1+ 76. Kxg1 Rb1+ 77. Kh2) 72... Kf7 $18 {[%emt 0:00:52]} 73. Qa2+ {[%emt 0:00:11]} 1-0

[Event "FIDE Womens Grand Prix-I 2022-23"]
[Site "Nur-Sultan"]
[Date "2022.09.22"]
[Round "5.2"]
[White "Assaubayeva, Bibisara"]
[Black "Lagno, Kateryna"]
[Result "1/2-1/2"]
[ECO "D32"]
[WhiteElo "2443"]
[BlackElo "2547"]
[Annotator "TA"]
[PlyCount "60"]
[EventDate "2022.09.15"]
[EventType "tourn"]
[EventCountry "KAZ"]
[SourceTitle "playchess.com"]
[Source "ChessBase"]
[SourceQuality "1"]
[TimeControl "40/5400+30:1800+30"]

{[%evp 11,60,30,29,31,23,25,29,27,29,0,0,0,22,25,42,40,58,20,29,20,22,19,26,12,14,16,18,11,4,8,6,6,30,0,0,0,0,0,4,0,0,0,4,4,8,0,0,0,0,0,0]} 1. d4 {[%emt 0:00:06]} d5 {[%emt 0:00:09]} 2. c4 {[%emt 0:00:10]} e6 {[%emt 0:00:10]} 3. Nc3 {[%emt 0:01:03]} c5 {[%emt 0:00:17]} 4. cxd5 {[%emt 0:01:12]} exd5 {[%emt 0:00:05]} 5. Nf3 {[%emt 0:00:44]} Nf6 {[%emt 0:00:20]} 6. Bg5 {[%emt 0:00:33]} Be6 {[%emt 0:00:31]} 7. dxc5 {[%emt 0:04:30][%cal Oe2e4] D32: Tarrasch Defence: Sidelines and lines without g3.} Bxc5 {[%emt 0:01:09]} 8. e3 {[%emt 0:00:09]} O-O {[%emt 0:00:18]} 9. Be2 {[%emt 0:17:18] White has an edge.} h6 {[%emt 0:00:55]} 10. Bh4 {[%emt 0:04:03]} Nc6 {[%emt 0:00:17]} 11. O-O {[%emt 0:02:27]} Be7 {[%emt 0:05:46]} 12. Nd4 {[%emt 0:06:13]} Nxd4 {[%emt 0:07:02]} 13. Qxd4 {[%emt 0:01:17] [#]} Ne4 $146 {[%emt 0:00:41]} ({Predecessor:} 13... Rc8 14. Rfd1 b6 15. Bg3 Bc5 16. Qa4 Qe7 17. a3 Qb7 18. Nb5 a6 19. Nd4 b5 {1-0 (38) Ebner,B (1722)-Schernetzki,B (1786) Playchess.com INT 2020}) 14. Nxe4 {[%emt 0:05:42]} Bxh4 {[%emt 0:00:05]} 15. Nc5 {[%emt 0:00:05]} Bf6 {[%emt 0:02:37]} 16. Nxe6 {[%emt 0:01:10]} Qd6 {[%emt 0:10:41]} 17. Qc5 {[%emt 0:10:40]} Qxe6 {[%emt 0:00:05]} 18. Bf3 {[%emt 0:00:08][%cal Be2f3,Bf3g4,Bg4e6,Be6d5][%mdl 32]} b6 {[%emt 0:03:54]} 19. Qa3 {[%emt 0:04:32]} a5 {[%emt 0:04:04]} 20. Rad1 {[%emt 0:05:52]} Rad8 {[%emt 0:00:14]} 21. Rfe1 {[%emt 0:00:10]} Rd6 {[%emt 0:20:01]} 22. Bg4 {[%emt 0:06:04]} Bxb2 {[%emt 0:06:32] The position is equal.} 23. Bxe6 {[%emt 0:02:16]} Bxa3 {[%emt 0:00:04]} 24. Bxd5 {[%emt 0:00:09]} Rc8 {[%emt 0:10:24]} 25. e4 {[%emt 0:01:19]} Kf8 {[%emt 0:02:57]} 26. Re3 {[%emt 0:01:59]} Bc5 {[%emt 0:01:08]} 27. Rf3 {[%emt 0:01:06]} Rd7 {[%emt 0:03:11]} 28. Kf1 {[%emt 0:02:39]} g6 {[%emt 0:01:20]} 29. Rc1 {[%emt 0:01:51] Black must now prevent Be6.} Kg7 {[%emt 0:00:22]} 30. Rfc3 {[%emt 0:01:29]} Rdc7 {[%emt 0:00:31] Weighted Error Value: White=0.06 (flawless) /Black=0.04 (flawless)} 1/2-1/2

[Event "FIDE Womens Grand Prix-I 2022-23"]
[Site "Nur-Sultan"]
[Date "2022.09.22"]
[Round "5.3"]
[White "Tan, Zhongyi"]
[Black "Goryachkina, Aleksandra"]
[Result "0-1"]
[ECO "D16"]
[WhiteElo "2525"]
[BlackElo "2579"]
[Annotator "TA"]
[PlyCount "120"]
[EventDate "2022.09.15"]
[EventType "tourn"]
[EventCountry "KAZ"]
[SourceTitle "playchess.com"]
[Source "ChessBase"]
[SourceQuality "1"]
[TimeControl "40/5400+30:1800+30"]

{[%evp 16,120,9,15,22,19,16,0,0,0,0,0,0,0,16,14,23,15,35,32,36,47,30,30,64,69,83,73,79,81,81,75,62,-5,-5,-5,-10,-13,-4,-10,0,0,0,0,0,0,0,0,0,0,0,0,0,0,0,0,0,0,0,0,0,0,0,0,0,0,0,0,0,0,0,-8,0,-128,-128,-139,-128,-135,-40,-107,-108,-207,-218,-209,-202,-221,-95,-178,-155,-338,-338,-334,-333,-334,-371,-331,-319,-456,-452,-488,-462,-453,-448,-486,-476,-449,-414]} 1. d4 {[%emt 0:00:04]} d5 {[%emt 0:00:10]} 2. c4 {[%emt 0:00:07]} c6 {[%emt 0:00:05]} 3. Nf3 {[%emt 0:00:09]} Nf6 {[%emt 0:00:06]} 4. Nc3 {[%emt 0:00:08]} dxc4 {[%emt 0:00:32]} 5. a4 {[%emt 0:00:09]} e6 {[%emt 0:00:09]} 6. e3 {[%emt 0:00:14]} c5 {[%emt 0:00:31]} 7. Bxc4 {[%emt 0:00:09]} cxd4 {[%emt 0:00:17] is cutting edge theory.} 8. exd4 {[%emt 0:00:08]} Nc6 {[%emt 0:00:19]} 9. O-O {[%emt 0:00:09]} Be7 {[%emt 0:00:17] D16: Slav Defence: 5 a4: Lines with 5...Bg4 and 5...Na6.} 10. Be3 {[%emt 0:00:12]} O-O {[%emt 0:01:12]} 11. Ne5 {[%emt 0:00:08]} Qd6 $5 {[%emt 0:10:39][%mdl 4] The position is equal. Exploring less charted territory.} 12. Nb5 {[%emt 0:12:54]} Qd8 {[%emt 0:00:14]} 13. Nc3 {[%emt 0:00:07] [#]} Qd6 $5 $146 {[%emt 0:00:02][%mdl 8] An interesting novelty.} ({Predecessor:} 13... a6 14. Rc1 Qd6 15. Nxc6 bxc6 16. b3 a5 17. Qe2 Nd5 18. Ne4 Qd8 19. Bd2 Qb6 20. Rfd1 Qxd4 21. Bxa5 {½-½ (109) Vidit,S (2513)-Ni,H (2641) Moscow 2012}) 14. Nxc6 {[%emt 0:02:48]} Qxc6 {[%emt 0:09:29]} 15. Qb3 {[%emt 0:05:43]} Qd6 {[%emt 0:07:14]} 16. h3 {[%emt 0:02:01]} Bd7 {[%emt 0:04:42]} 17. Rfd1 {[%emt 0:02:53]} Qb4 {[%emt 0:14:46]} 18. d5 {[%emt 0:00:59][%cal Rd5e6]} Qxb3 {[%emt 0:01:42]} 19. Bxb3 {[%emt 0:00:13]} Bb4 {[%emt 0:01:57]} 20. Nb5 {[%emt 0:11:15]} Bxb5 {[%emt 0:10:06]} 21. axb5 {[%emt 0:00:11]} Nxd5 {[%emt 0:00:16]} 22. Bxd5 {[%emt 0:00:10]} exd5 {[%emt 0:00:02]} 23. Rxd5 {[%emt 0:00:52]} a6 {[%emt 0:05:46]} 24. b6 {[%emt 0:01:47]} (24. Rad1 $14) 24... Rfd8 $11 {[%emt 0:02:31]} 25. Rad1 {[%emt 0:00:58]} Be7 {[%emt 0:01:18]} 26. Rd7 {[%emt 0:00:11] Threatens to win with R1d2.} Kf8 $1 {[%emt 0:01:24]} 27. R1d4 {[%emt 0:21:19]} Rab8 {[%emt 0:01:01]} 28. Rc7 {[%emt 0:06:01]} Rxd4 {[%emt 0:08:25]} 29. Bxd4 {[%emt 0:00:06][%mdl 4096] Endgame KRB-KRB} Bd8 {[%emt 0:00:44]} 30. Rc2 {[%emt 0:03:08]} f6 {[%emt 0:01:13]} 31. g4 {[%emt 0:00:26]} Ke8 {[%emt 0:01:18]} 32. Kg2 {[%emt 0:00:09]} Kd7 {[%emt 0:04:13]} 33. Kf3 {[%emt 0:00:06]} a5 {[%emt 0:05:47]} 34. Ke4 {[%emt 0:09:28]} Ra8 {[%emt 0:00:19]} 35. Be3 {[%emt 0:07:47]} Ra6 {[%emt 0:02:12]} 36. Rd2+ {[%emt 0:00:19]} Ke8 {[%emt 0:00:35]} 37. Rd6 {[%emt 0:00:13]} a4 {[%emt 0:01:47]} 38. f4 {[%emt 0:07:31]} a3 {[%emt 0:00:36]} 39. bxa3 {[%emt 0:00:06]} Rxa3 {[%emt 0:00:20]} 40. f5 {[%emt 0:00:51]} Rb3 {[%emt 0:02:04]} 41. h4 {[%emt 0:32:58]} Be7 {[%emt 0:32:35]} 42. Re6 {[%emt 0:00:35] aiming for Bc5.} Kd7 {[%emt 0:00:00]} 43. Bd4 {[%emt 0:00:00]} Rg3 {[%emt 0:00:00]} 44. g5 {[%emt 0:00:00]} (44. Kd5 $11 {remains equal.}) 44... Rg4+ $1 $17 {[%emt 0:00:00]} (44... fxg5 45. h5) 45. Kd3 {[%emt 0:00:00][%cal Rg5f6]} fxg5 {[%emt 0:00:00][%cal Bf6g5,Bg5g4][%mdl 32]} 46. h5 {[%emt 0:00:00]} Bf8 {[%emt 0:00:00]} (46... Rf4 $17 47. h6 gxh6 48. Rxh6 Rh4) 47. Re2 {[%emt 0:00:00]} (47. Re5 $1 $15) 47... Rf4 {[%emt 0:00:00]} 48. Re5 {[%emt 0:00:00]} (48. Rf2 $17) 48... Bd6 $1 $19 {[%emt 0:00:00]} 49. Ra5 {[%emt 0:00:00] [#]} g4 $1 {[%emt 0:00:00]} 50. Be3 {[%emt 0:01:37] [#]} Rf1 {[%emt 0:00:00]} (50... Rb4 $1 $19 {and Black stays clearly on top. White must now prevent ...g3.} 51. Ra8 g3) 51. Ke2 {[%emt 0:00:14]} (51. Ra4 $17 {was called for.}) 51... Rh1 {[%emt 0:00:00] ...Rh2+ is the strong threat.} 52. Ra4 $2 {[%emt 0:02:18] Now White is beyond hope.} (52. h6 $17 gxh6 53. Ra8) 52... Rxh5 {[%emt 0:00:00]} ({Weaker is} 52... Rh2+ 53. Kd3 $17) 53. Rxg4 {[%emt 0:00:07]} Be5 {[%emt 0:00:00]} ({Worse is} 53... Rxf5 54. Rxg7+ Kc6 55. Rxh7 $11) 54. Kd3 {[%emt 0:04:30]} Rxf5 {[%emt 0:00:00]} 55. Ra4 {[%emt 0:00:12]} Bd6 {[%emt 0:00:00]} 56. Bd4 {[%emt 0:00:22]} (56. Ra8 {is a better defense.}) 56... g6 {[%emt 0:00:17] Black is clearly winning.} 57. Ke4 {[%emt 0:00:09]} Bc5 {[%emt 0:01:05]} 58. Be5 {[%emt 0:01:03]} Bxb6 {[%emt 0:00:28]} 59. Rb4 {[%emt 0:00:05]} Kc6 {[%emt 0:00:12]} 60. Rc4+ {[%emt 0:00:06]} Bc5 {[%emt 0:00:08] Weighted Error Value: White=0.22 (precise) /Black=0.07 (flawless)} 0-1

[Event "FIDE Womens Grand Prix-I 2022-23"]
[Site "Nur-Sultan"]
[Date "2022.09.22"]
[Round "5.4"]
[White "Wagner, Dinara"]
[Black "Vaishali, Rameshbabu"]
[Result "1/2-1/2"]
[ECO "E04"]
[WhiteElo "2358"]
[BlackElo "2449"]
[Annotator "TA"]
[PlyCount "103"]
[EventDate "2022.09.15"]
[EventType "tourn"]
[EventCountry "KAZ"]
[SourceTitle "playchess.com"]
[Source "ChessBase"]
[SourceQuality "1"]
[TimeControl "40/5400+30:1800+30"]

{[%evp 9,103,0,16,0,7,6,20,8,23,30,24,22,28,34,72,61,103,91,105,92,103,56,39,53,47,60,57,49,150,144,135,91,88,0,0,0,0,0,0,0,47,33,44,15,15,15,18,17,5,0,17,0,1,6,5,0,0,0,0,0,0,0,0,0,20,0,0,0,0,0,0,0,0,0,0,0,0,0,0,0,0,0,0,0,6,0,0,0,0,0,0,0,0,0,0,0]} 1. d4 {[%emt 0:00:04]} Nf6 {[%emt 0:00:36]} 2. c4 {[%emt 0:00:06]} e6 {[%emt 0:00:04]} 3. Nf3 {[%emt 0:00:17]} d5 {[%emt 0:00:05]} 4. g3 {[%emt 0:00:33]} dxc4 {[%emt 0:00:15]} 5. Bg2 {[%emt 0:00:16]} c6 {[%emt 0:00:17]} 6. a4 {[%emt 0:00:20]} Bb4+ {[%emt 0:00:14]} 7. Bd2 {[%emt 0:00:15]} a5 {[%emt 0:00:21]} 8. Qc2 {[%emt 0:02:36]} O-O {[%emt 0:00:26]} 9. Bxb4 {[%emt 0:00:08]} axb4 {[%emt 0:00:05]} 10. Qxc4 {[%emt 0:00:08]} Qa5 {[%emt 0:00:23]} 11. Qc2 {[%emt 0:00:20]} Nbd7 {[%emt 0:09:46]} 12. Nbd2 {[%emt 0:03:11]} e5 {[%emt 0:09:25][%cal Ob4b3]} 13. Nc4 {[%emt 0:11:51][%csl LRa5,LRe5]} b3+ {[%emt 0:00:24]} 14. Qd2 {[%emt 0:00:07]} Qxd2+ {[%emt 0:08:35]} 15. Ncxd2 {[%emt 0:02:49]} (15. Nfxd2 $16 exd4 16. Nxb3) 15... e4 $14 {[%emt 0:20:10]} 16. Ng5 {[%emt 0:05:47]} e3 {[%emt 0:05:50]} 17. fxe3 {[%emt 0:20:38]} Nb6 {[%emt 0:03:21]} 18. a5 {[%emt 0:00:42] Black must now prevent e4.} (18. Nxb3 Nc4 $11) 18... Re8 {[%emt 0:02:35]} (18... Ng4 $14) 19. e4 {[%emt 0:25:26]} ({And not} 19. Nxb3 Nc4 $15) 19... h6 {[%emt 0:01:00]} 20. Ngf3 {[%emt 0:12:44]} (20. Nxb3 Nc4 21. e5 Ne3 $11) 20... Nxe4 {[%emt 0:01:38]} 21. O-O {[%emt 0:00:45]} (21. Ne5 $16 f6 22. Bxe4 (22. Nxe4 fxe5 23. Nd6 Re7 $14) 22... fxe5 23. Nxb3 exd4 24. Bg6) 21... Nxd2 $11 {[%emt 0:17:29]} 22. Nxd2 {[%emt 0:00:04]} Nd5 {[%emt 0:00:04]} (22... Rxe2 $2 23. axb6 (23. Rf2 Re7 $11) 23... Rxa1 24. Rxa1 $18) 23. Bxd5 {[%emt 0:03:29]} cxd5 {[%emt 0:00:03]} 24. Rfe1 {[%emt 0:01:08]} b6 {[%emt 0:03:29]} (24... Ra6 $11) 25. axb6 $14 {[%emt 0:01:35]} Rb8 {[%emt 0:02:21]} 26. Ra3 {[%emt 0:00:30]} Rxb6 {[%emt 0:00:55] The position is equal.} 27. Rxb3 {[%emt 0:00:04]} Rc6 {[%emt 0:04:44]} 28. Rc3 {[%emt 0:03:27]} Rb6 {[%emt 0:00:42]} 29. Rb3 {[%emt 0:00:11]} Rc6 {[%emt 0:00:09]} 30. Rc3 {[%emt 0:00:02]} Rb6 {[%emt 0:00:03]} 31. b3 {[%emt 0:00:32]} Bh3 {[%emt 0:01:00]} 32. Kf2 {[%emt 0:00:52]} Rf6+ {[%emt 0:00:28]} 33. Rf3 {[%emt 0:01:39]} Rfe6 {[%emt 0:00:19]} 34. Rc3 {[%emt 0:01:31]} Rf6+ {[%emt 0:00:02]} 35. Nf3 {[%emt 0:00:58]} g5 {[%emt 0:01:02] ...g4 is the strong threat.} 36. Kg1 {[%emt 0:01:29]} Re4 {[%emt 0:03:25]} 37. Rd3 {[%emt 0:01:34]} Kg7 {[%emt 0:04:56]} 38. Nd2 {[%emt 0:00:13]} Re7 {[%emt 0:00:21]} 39. Nf3 {[%emt 0:01:04]} Rfe6 {[%emt 0:01:58]} 40. Kf2 {[%emt 0:00:29]} Rf6 {[%emt 0:00:44] [#] Strongly threatening ...g4.} 41. Kg1 $1 {[%emt 0:01:52]} Ra6 {[%emt 0:15:55]} 42. Ne5 {[%emt 0:11:07]} f6 {[%emt 0:01:11]} 43. Nf3 {[%emt 0:01:01]} Bf5 {[%emt 0:04:33]} 44. Rd2 {[%emt 0:02:16]} Be4 {[%emt 0:04:38] [#] Threatens to win with ...Bxf3.} 45. Rc1 {[%emt 0:03:28]} Rb7 {[%emt 0:02:21]} 46. Rb2 {[%emt 0:00:33]} Rb4 {[%emt 0:00:11]} 47. Kf2 {[%emt 0:05:38]} Rab6 {[%emt 0:00:50]} (47... Kf7 {looks sharper.} 48. Rc7+ Ke6 49. Ke3 Ra3) 48. Rc3 {[%emt 0:01:27]} Bxf3 {[%emt 0:01:40]} 49. exf3 {[%emt 0:00:20]} Rxd4 {[%emt 0:00:07]} 50. Rc5 {[%emt 0:02:49]} h5 {[%emt 0:01:14]} 51. Ke3 {[%emt 0:01:21]} Rdb4 {[%emt 0:01:12]} 52. Rxd5 {[%emt 0:00:11] Weighted Error Value: White=0.08 (flawless) /Black=0.07 (flawless)} 1/2-1/2

[Event "FIDE Womens Grand Prix-I 2022-23"]
[Site "Nur-Sultan"]
[Date "2022.09.22"]
[Round "5.5"]
[White "Paehtz, Elisabeth"]
[Black "Kosteniuk, Alexandra"]
[Result "0-1"]
[ECO "C84"]
[WhiteElo "2477"]
[BlackElo "2521"]
[Annotator "TA"]
[PlyCount "64"]
[EventDate "2022.09.15"]
[EventType "tourn"]
[EventCountry "KAZ"]
[SourceTitle "playchess.com"]
[Source "ChessBase"]
[SourceQuality "1"]
[TimeControl "40/5400+30:1800+30"]

{[%evp 13,64,12,19,-3,21,16,16,0,12,7,13,6,56,27,29,0,10,0,20,-6,10,12,0,0,0,0,8,0,0,0,0,0,0,0,6,0,0,-26,0,0,0,0,0,0,0,0,0,-2,0,-4,-12,-969,-955]} 1. e4 {[%emt 0:00:01]} e5 {[%emt 0:00:05]} 2. Nf3 {[%emt 0:00:04]} Nc6 {[%emt 0:00:04]} 3. Bb5 {[%emt 0:00:04][%cal Bf1b5,Bb5a4,Ba4b3,Bb3c4][%mdl 32]} a6 {[%emt 0:00:04]} 4. Ba4 {[%emt 0:00:03]} Nf6 {[%emt 0:00:04]} 5. O-O {[%emt 0:00:06]} Be7 {[%emt 0:00:09]} 6. d3 {[%emt 0:00:08]} b5 {[%emt 0:00:16]} 7. Bb3 {[%emt 0:00:05]} d6 {[%emt 0:00:20]} 8. Bd2 {[%emt 0:00:05] C84: Closed Ruy Lopez: Unusual White 6th moves.} O-O {[%emt 0:00:23]} 9. h3 {[%emt 0:00:04]} Bb7 {[%emt 0:01:59]} 10. Re1 {[%emt 0:00:09] The position is equal.} Nb8 {[%emt 0:02:09] [#]} 11. c4 $146 {[%emt 0:10:12]} ({Predecessor:} 11. a3 Nbd7 12. Nc3 Nc5 13. Ba2 Ne6 14. Ne2 Re8 15. Ng3 Bf8 16. c4 c5 17. b4 {1-0 (80) Nihal,S (2650)-Kovalev,V (2634) Dubai 2021}) 11... bxc4 {[%emt 0:05:33]} 12. Bxc4 {[%emt 0:00:05]} Nbd7 {[%emt 0:00:09]} (12... c5 $11) 13. Nc3 {[%emt 0:03:17]} Nb6 {[%emt 0:04:08]} 14. Bb3 {[%emt 0:00:18]} c5 {[%emt 0:00:11] Inhibits d4.} 15. Be3 {[%emt 0:07:50]} Ne8 {[%emt 0:10:06][%cal Bf6e8,Be8c7,Bc7e6][%mdl 32]} 16. Nd2 {[%emt 0:01:42]} Kh8 {[%emt 0:03:33]} (16... Nc7 {is interesting.} 17. Rb1 Rb8 18. Qg4 Bc8) 17. f4 {[%emt 0:12:21]} exf4 {[%emt 0:08:28]} 18. Bxf4 {[%emt 0:00:04]} Nc7 {[%emt 0:00:12]} 19. Nc4 {[%emt 0:04:50]} Ne6 {[%emt 0:00:46] [#] aiming for ...Nxc4.} 20. Be3 {[%emt 0:12:06]} Nxc4 {[%emt 0:04:14]} 21. Bxc4 {[%emt 0:00:04]} Bf6 {[%emt 0:00:21]} 22. Rf1 {[%emt 0:02:26]} Rb8 {[%emt 0:03:58]} 23. Qd2 {[%emt 0:06:16]} Be5 {[%emt 0:03:33]} 24. Rac1 {[%emt 0:01:05]} Qd7 {[%emt 0:06:29]} 25. Kh1 {[%emt 0:09:30]} Nd4 {[%emt 0:01:09]} 26. Bd5 {[%emt 0:05:15]} f5 {[%emt 0:05:02]} 27. b3 {[%emt 0:01:25]} fxe4 {[%emt 0:06:45]} 28. dxe4 {[%emt 0:00:05]} Bxd5 {[%emt 0:00:39]} 29. Nxd5 {[%emt 0:03:48]} Qb5 {[%emt 0:00:46]} 30. Rf2 {[%emt 0:04:17]} Rxf2 {[%emt 0:00:59]} 31. Qxf2 {[%emt 0:00:13]} Ne2 {[%emt 0:01:44]} 32. Rc4 {[%emt 0:01:13][%mdl 8192] [#]} (32. Re1 $11 Ng3+ 33. Kg1) 32... Qxc4 $3 {[%emt 0:01:23][%mdl 512] Weighted Error Value: White=0.38/Black=0.07 (flawless)} 0-1